bitfinex/quotes_SOLUSD_20240925
["timestamp","ask_amount","ask_price","bid_price","bid_amount"]
[1727283769385,23.776884,151.73,151.67,0.4527175]
[1727283769585,8.23937696,151.72,151.67,7.0458175]
[1727283770524,1.64807696,151.72,151.67,7.0458175]
[1727283770687,23.776884,151.71,151.67,0.4527175]
[1727283771009,6.5919,151.7,151.67,0.4527175]
[1727283771906,1.64825226,151.69,151.67,0.4527175]
[1727283772115,6.5919,151.7,151.67,0.4527175]
[1727283773382,1.64825257,151.69,151.67,0.4527175]
[1727283773605,8.24015275,151.7,151.67,0.4527175]
[1727283774316,6.5928,151.68,151.67,0.4527175]
[1727283777398,6.5925,151.69,151.67,0.4527175]
[1727283777604,6.5922,151.7,151.67,0.4527175]
[1727283778315,6.5914,151.72,151.68,6.5926]
[1727283778499,6.5915,151.71,151.67,23.1101175]
[1727283778911,6.5912,151.72,151.68,6.5928]
[1727283779105,6.5912,151.72,151.67,16.5170175]
[1727283779106,8.23877996,151.73,151.69,6.592]
[1727283779305,8.23877996,151.73,151.67,16.5170175]
[1727283779306,1.64807996,151.73,151.67,16.5170175]
[1727283779536,1.6480801,151.72,151.69,6.5922]
[1727283779723,6.86143947,151.74,151.67,23.1677175]
[1727283779903,6.5907,151.73,151.69,6.5923]
[1727283780801,1.64789686,151.72,151.67,23.1677175]
[1727283781008,9.75198097,151.73,151.67,23.1677175]
[1727283781213,1.64809451,151.72,151.67,23.1677175]
[1727283781519,6.5925,151.69,151.67,16.5170175]
[1727283781712,6.592,151.7,151.67,16.5170175]
[1727283782052,6.5928,151.68,151.67,0.4527175]
[1727283782314,26.22988097,151.72,151.67,0.4527175]
[1727283782617,6.5925,151.69,151.67,0.4527175]
[1727283782797,8.24082115,151.69,151.67,0.4527175]
[1727283783738,6.592,151.7,151.67,0.4527175]
[1727283783947,23.776884,151.74,151.67,0.4527175]
[1727283784126,6.5912,151.72,151.68,6.5927]
[1727283784840,6.5912,151.72,151.67,7.0458175]
[1727283786921,56.8606019,151.77,151.68,0.33925581]
[1727283786922,6.8606019,151.77,151.68,0.33925581]
[1727283787130,6.8606019,151.77,151.67,0.4527175]
[1727283787131,6.59,151.75,151.71,6.5914]
[1727283787333,1.64777651,151.74,151.71,6.5914]
[1727283787543,1.64777651,151.74,151.7,15.824]
[1727283787844,6.5902,151.74,151.7,22.4158]
[1727283788433,1.64777714,151.76,151.7,22.4158]
[1727283788636,6.5898,151.75,151.71,6.5914]
[1727283789039,1.64777585,151.74,151.7,15.824]
[1727283789234,11.39975682,151.74,151.67,0.4527175]
[1727283789439,33.52886497,151.73,151.67,0.4527175]
[1727283789636,1.64832009,151.72,151.67,0.4527175]
[1727283789843,23.776884,151.71,151.67,0.4527175]
[1727283790647,8.24062164,151.7,151.67,0.4527175]
[1727283790854,6.5928,151.68,151.67,0.4527175]
[1727283791750,8.24133535,151.68,151.67,0.4527175]
[1727283791956,32.01821935,151.68,151.67,0.4527175]
[1727283792451,41.77020032,151.68,151.67,0.4527175]
[1727283795745,40.12166497,151.68,151.67,0.4527175]
[1727283796256,41.77064588,151.68,151.67,0.4527175]
[1727283797338,50.0,151.67,151.62,0.247314]
[1727283797538,30.371884,151.63,151.62,0.247314]
[1727283798457,6.5967,151.59,151.58,0.1796605]
[1727283798751,30.373584,151.59,151.58,0.1796605]
[1727283799150,32.0234408,151.59,151.58,0.1796605]
[1727283800158,30.373584,151.59,151.58,0.1796605]
[1727283801229,6.5967,151.59,151.58,0.1796605]
[1727283801429,32.02319284,151.59,151.58,0.1796605]
[1727283801662,30.373584,151.59,151.58,0.1796605]
[1727283802346,32.02316558,151.59,151.58,0.1796605]
[1727283802742,9.75198097,151.63,151.58,6.7763605]
[1727283802946,8.2448899,151.62,151.58,15.3620605]
[1727283803158,9.75198097,151.63,151.58,15.3620605]
[1727283803159,6.596,151.61,151.58,15.3620605]
[1727283803461,23.21195167,151.63,151.58,21.9588605]
[1727283803642,1.64918493,151.62,151.58,21.9588605]
[1727283804462,8.24468493,151.62,151.58,21.9588605]
[1727283804656,1.64918493,151.62,151.58,15.3620605]
[1727283804839,1.64918493,151.62,151.58,21.9591605]
[1727283805044,16.34718097,151.63,151.59,6.5967]
[1727283805344,6.5952,151.63,151.59,6.5967]
[1727283805733,6.5952,151.63,151.58,28.5316605]
[1727283805929,1.64911128,151.62,151.58,28.5316605]
[1727283806346,1.64911128,151.62,151.59,6.5964]
[1727283807459,1.64911159,151.63,151.58,21.9348605]
[1727283807638,6.5944,151.65,151.59,0.34160412]
[1727283807842,6.5944,151.65,151.58,21.9348605]
[1727283808143,6.5953,151.63,151.58,28.5319605]
[1727283808458,6.5953,151.63,151.59,6.5966]
[1727283808662,9.75198097,151.64,151.58,21.9348605]
[1727283808970,1.6489562,151.63,151.6,6.5962]
[1727283809131,1.6489562,151.63,151.58,21.9348605]
[1727283809335,1.6489562,151.63,151.59,6.5964]
[1727283809574,8.2440562,151.63,151.58,28.5318605]
[1727283809760,1.6489562,151.63,151.58,28.5318605]
[1727283810065,6.5955,151.62,151.58,28.5318605]
[1727283810249,1.64911108,151.61,151.58,28.5318605]
[1727283810637,6.5951,151.63,151.59,6.5965]
[1727283810848,6.5945,151.64,151.6,6.5963]
[1727283811161,23.776884,151.65,151.6,6.5963]
[1727283811373,6.5948,151.64,151.58,21.9348605]
[1727283811545,23.776884,151.65,151.59,6.5966]
[1727283811742,23.776884,151.65,151.58,21.9348605]
[1727283811743,6.5946,151.64,151.6,6.5961]
[1727283812269,6.5937,151.66,151.62,6.5953]
[1727283813676,1.64881805,151.65,151.61,6.5958]
[1727283813851,6.5937,151.66,151.61,6.5958]
[1727283814677,8.24292109,151.65,151.61,6.5958]
[1727283815793,6.5941,151.65,151.61,6.5958]
[1727283816571,23.776884,151.67,151.58,21.9348605]
[1727283817160,30.370384,151.67,151.62,6.5952]
[1727283817380,1.64875352,151.66,151.62,6.5952]
[1727283817587,8.24265352,151.66,151.62,6.5952]
[1727283817762,6.5939,151.66,151.62,6.5952]
[1727283818970,1.64875556,151.65,151.62,6.5952]
[1727283820961,1.64875556,151.65,151.59,6.5966]
[1727283821288,6.595,151.63,151.59,6.5966]
[1727283821462,1.64907563,151.62,151.59,6.5966]
[1727283821963,6.595,151.63,151.59,6.5966]
[1727283822561,8.24457371,151.62,151.58,28.5319605]
[1727283822759,1.64915383,151.61,151.58,28.5319605]
[1727283823062,6.5959,151.61,151.58,21.9348605]
[1727283825061,6.5955,151.62,151.58,45.0241605]
[1727283825900,6.5955,151.62,151.49,2.5234073]
[1727283825901,6.6015,151.48,151.44,0.247314]
[1727283826091,6.5796,151.54,151.44,0.247314]
[1727283826092,6.6011,151.49,151.44,0.247314]
[1727283826389,8.25133527,151.51,151.44,0.247314]
[1727283826860,1.65048758,151.5,151.44,0.247314]
[1727283827060,6.6014,151.49,151.44,0.247314]
[1727283827278,8.25215392,151.48,151.44,0.247314]
[1727283827484,6.6006,151.51,151.45,6.6027]
[1727283827859,1.65026085,151.5,151.44,0.247314]
[1727283828062,23.776884,151.52,151.44,0.247314]
[1727283828272,6.6008,151.5,151.44,6.850214]
[1727283828780,6.6008,151.5,151.44,0.247314]
[1727283828982,6.6008,151.5,151.45,6.6028]
[1727283829282,6.6002,151.51,151.45,6.6028]
[1727283830286,1.65037619,151.5,151.45,6.6024]
[1727283830482,1.65037619,151.5,151.44,0.247314]
[1727283830483,23.776884,151.49,151.44,0.247314]
[1727283830666,6.602,151.47,151.44,0.247314]
[1727283835890,6.6015,151.48,151.44,0.247314]
[1727283837485,25.33315509,151.54,151.44,0.247314]
[1727283837786,89.67,151.57,151.45,0.34514179]
[1727283838091,6.5997,151.53,151.47,6.6019]
[1727283838767,6.5997,151.53,151.48,22.0694]
[1727283838981,6.6007,151.5,151.48,22.0694]
[1727283839782,1.6501301,151.52,151.48,22.0694]
[1727283839986,6.86578087,151.55,151.48,22.0694]
[1727283840285,6.5998,151.52,151.48,22.0694]
[1727283840475,6.86578087,151.55,151.48,22.0694]
[1727283840682,6.5995,151.53,151.48,28.6708]
[1727283840886,6.86578087,151.55,151.48,22.0694]
[1727283841400,6.5994,151.53,151.48,28.6708]
[1727283842786,1.6500762,151.54,151.48,22.0694]
[1727283842979,6.5992,151.54,151.48,22.0694]
[1727283843506,6.5985,151.55,151.5,6.6005]
[1727283844477,23.776884,151.57,151.5,6.6005]
[1727283844694,6.5989,151.54,151.49,6.94486327]
[1727283845397,6.5989,151.54,151.49,6.601]
[1727283846700,1.64991177,151.56,151.49,6.601]
[1727283846890,6.5993,151.53,151.49,6.601]
[1727283847294,8.24971365,151.52,151.48,22.0694]
[1727283847502,1.65007786,151.56,151.48,22.0694]
[1727283847705,6.6007,151.5,151.48,22.0694]
[1727283847877,25.33205509,151.55,151.48,22.0694]
[1727283847878,6.6003,151.51,151.48,22.0694]
[1727283849704,25.33205509,151.55,151.48,22.0694]
[1727283849907,6.5994,151.53,151.48,22.0694]
[1727283850080,6.5994,151.53,151.48,28.6708]
[1727283850414,6.5998,151.52,151.48,28.6708]
[1727283851805,23.776884,151.55,151.48,22.0694]
[1727283852306,6.6,151.52,151.48,22.0694]
[1727283853500,1.65007628,151.51,151.48,22.0694]
[1727283853695,6.6009,151.5,151.48,22.0694]
[1727283857217,6.601,151.49,151.48,22.0694]
[1727283857899,6.601,151.49,151.48,15.7889]
[1727283858506,23.776884,151.53,151.48,15.7889]
[1727283858810,8.83525509,151.55,151.5,6.6003]
[1727283859015,6.87134128,151.56,151.48,15.7889]
[1727283859299,6.5993,151.53,151.49,6.6008]
[1727283859499,6.5999,151.52,151.48,15.7889]
[1727283860690,6.5996,151.53,151.48,15.7889]
[1727283860900,6.5996,151.53,151.49,6.601]
[1727283862294,6.599,151.54,151.49,6.601]
[1727283862603,6.89829472,151.53,151.48,15.7889]
[1727283862805,6.6002,151.51,151.48,15.7889]
[1727283862998,1.65022688,151.51,151.48,15.7889]
[1727283863193,6.601,151.49,151.48,15.7889]
[1727283863391,1.65022688,151.51,151.44,29.002014]
[1727283863610,6.6017,151.48,151.44,29.002014]
[1727283864304,6.6012,151.49,151.44,29.002014]
[1727283864513,6.6012,151.49,151.44,22.399214]
[1727283864810,6.6015,151.48,151.44,29.002214]
[1727283865115,6.6015,151.48,151.44,29.002314]
[1727283866086,1.65052128,151.47,151.44,22.399214]
[1727283866296,6.6025,151.46,151.44,22.399214]
[1727283866593,6.6021,151.47,151.44,22.399214]
[1727283867114,6.6025,151.46,151.44,22.399214]
[1727283867290,6.6028,151.45,151.44,15.754214]
[1727283868211,6.6028,151.45,151.44,0.247314]
[1727283868386,30.379684,151.45,151.44,0.247314]
[1727283869890,6.6028,151.45,151.44,0.247314]
[1727283873490,16.4996,151.52,151.44,0.247314]
[1727283873697,6.6018,151.48,151.44,6.850214]
[1727283874288,1.65056914,151.51,151.44,0.247314]
[1727283874493,6.6019,151.48,151.44,0.247314]
[1727283874807,6.6015,151.48,151.44,6.850514]
[1727283874999,1.65060443,151.48,151.44,0.247314]
[1727283875211,6.6025,151.46,151.44,0.247314]
[1727283875908,6.6028,151.45,151.44,0.247314]
[1727283876412,6.6025,151.46,151.44,0.247314]
[1727283882909,6.6021,151.47,151.44,0.247314]
[1727283884626,1.65069219,151.46,151.44,0.247314]
[1727283884918,6.6028,151.45,151.44,0.247314]
[1727283886122,8.25386699,151.45,151.44,0.247314]
[1727283886426,6.6028,151.45,151.44,0.247314]
[1727283886901,30.379684,151.45,151.44,0.247314]
[1727283887901,32.03094913,151.45,151.44,0.247314]
[1727283888326,30.381884,151.4,151.39,0.4269745]
[1727283888499,30.381884,151.4,151.31,16.064]
[1727283888500,6.6072,151.35,151.31,16.064]
[1727283888996,30.384084,151.35,151.31,16.064]
[1727283889192,30.384084,151.35,151.3,0.4269745]
[1727283892140,23.776884,151.35,151.3,7.0361745]
[1727283893022,6.6067,151.36,151.3,7.0361745]
[1727283893216,1.65214926,151.35,151.3,7.0361745]
[1727283893423,6.6067,151.36,151.3,7.0361745]
[1727283893823,1.65214773,151.38,151.3,7.0361745]
[1727283894001,6.6072,151.35,151.3,7.0361745]
[1727283896012,6.6067,151.36,151.31,6.6088]
[1727283896705,30.0,151.45,151.36,23.776884]
[1727283896929,1.65093768,151.44,151.4,6.6048]
[1727283897216,1.65093768,151.44,151.38,23.1191]
[1727283897412,30.0,151.45,151.38,16.5137]
[1727283897609,6.6028,151.45,151.39,6.6054]
[1727283897818,8.25457431,151.44,151.39,6.6054]
[1727283898216,6.6037,151.43,151.38,16.5137]
[1727283898397,8.25558574,151.42,151.38,16.5137]
[1727283898602,50.0,151.47,151.38,16.5137]
[1727283898897,6.6038,151.43,151.38,23.1195]
[1727283899100,1.65146602,151.42,151.38,16.5137]
[1727283899306,6.6046,151.41,151.36,6.6064]
[1727283899514,6.6046,151.41,151.35,21.2642]
[1727283899515,1.65148954,151.4,151.35,21.2642]
[1727283899711,1.65148954,151.4,151.36,6.6067]
[1727283899909,1.65148954,151.4,151.37,6.6062]
[1727283900507,1.65148697,151.41,151.37,6.6062]
[1727283900799,8.25648697,151.41,151.35,21.2642]
[1727283901004,30.382284,151.4,151.34,23.373114]
[1727283901236,1.65175181,151.39,151.34,23.373114]
[1727283901519,8.25715181,151.39,151.34,23.373114]
[1727283901905,23.776884,151.4,151.34,16.765514]
[1727283902719,30.381084,151.42,151.34,16.765514]
[1727283902901,23.776884,151.42,151.38,6.6058]
[1727283903428,1.65144057,151.42,151.38,6.6058]
[1727283903614,6.6037,151.43,151.38,6.6058]
[1727283904222,6.6046,151.41,151.36,23.1223]
[1727283904524,8.25654189,151.4,151.36,16.5159]
[1727283904734,23.776884,151.4,151.36,23.1226]
[1727283904914,23.776884,151.4,151.36,16.5159]
[1727283905226,1.65170196,151.39,151.34,0.247314]
[1727283905422,25.42867466,151.38,151.34,0.247314]
[1727283905628,30.383584,151.36,151.34,0.247314]
[1727283905809,23.776884,151.37,151.34,0.247314]
[1727283906410,30.383284,151.37,151.34,0.247314]
[1727283906612,6.6058,151.38,151.34,0.247314]
[1727283906812,6.6068,151.36,151.34,0.247314]
[1727283907172,1.65206085,151.35,151.34,0.247314]
[1727283907326,25.42894485,151.35,151.34,0.247314]
[1727283907714,23.776884,151.35,151.34,0.247314]
[1727283908020,30.384084,151.35,151.34,0.247314]
[1727283908413,80.384084,151.35,151.34,0.247314]
[1727283908607,30.384084,151.35,151.34,0.247314]
[1727283909116,82.03667592,151.35,151.34,0.247314]
[1727283909304,32.03667592,151.35,151.34,0.247314]
[1727283909509,30.384084,151.35,151.34,0.247314]
[1727283909821,32.03653027,151.35,151.34,0.247314]
[1727283910515,30.384084,151.35,151.34,0.247314]
[1727283912023,23.776884,151.35,151.34,0.247314]
[1727283912440,30.384084,151.35,151.34,0.247314]
[1727283913930,32.03635733,151.35,151.34,0.247314]
[1727283915311,82.03635733,151.35,151.34,0.247314]
[1727283916032,80.384084,151.35,151.34,0.247314]
[1727283916230,30.384084,151.35,151.34,0.247314]
[1727283919650,32.03649373,151.35,151.34,0.247314]
[1727283919820,30.384084,151.35,151.34,0.247314]
[1727283920224,6.6072,151.35,151.34,0.247314]
[1727283921242,8.25947242,151.35,151.34,0.247314]
[1727283921936,32.03635642,151.35,151.34,0.247314]
[1727283922242,37.27647367,151.35,151.34,0.247314]
[1727283923737,88.92887191,151.35,151.34,0.247314]
[1727283923924,23.776884,151.34,151.3,0.4269745]
[1727283924124,30.385784,151.31,151.3,0.4269745]
[1727283925239,6.6089,151.31,151.3,0.4269745]
[1727283925439,30.385784,151.31,151.3,0.4269745]
[1727283927240,70.055784,151.31,151.3,0.4269745]
[1727283932337,30.385784,151.31,151.3,0.4269745]
[1727283933750,32.03853355,151.31,151.3,0.4269745]
[1727283934840,30.385784,151.31,151.3,0.4269745]
[1727283941253,6.6111,151.26,151.25,0.247314]
[1727283943056,30.387984,151.26,151.25,0.247314]
[1727283943353,32.04136996,151.26,151.25,0.247314]
[1727283943545,30.387984,151.26,151.25,0.247314]
[1727283945358,6.6108,151.27,151.25,0.247314]
[1727283945656,8.26405087,151.26,151.25,0.247314]
[1727283945963,6.6111,151.26,151.25,0.247314]
[1727283946661,30.387984,151.26,151.25,0.247314]
[1727283947752,6.6111,151.26,151.25,0.247314]
[1727283948053,6.6109,151.27,151.25,0.247314]
[1727283949664,23.776884,151.29,151.25,0.247314]
[1727283949846,6.6111,151.26,151.25,0.247314]
[1727283950040,8.26425047,151.26,151.25,0.247314]
[1727283950239,6.6111,151.26,151.25,0.247314]
[1727283952140,6.6108,151.27,151.25,0.247314]
[1727283952535,23.776884,151.29,151.25,0.247314]
[1727283952536,6.6111,151.26,151.25,0.247314]
[1727283952736,8.26407092,151.26,151.25,0.247314]
[1727283952955,6.6111,151.26,151.25,0.247314]
[1727283953152,13.49917395,151.3,151.26,16.4009]
[1727283953342,6.6099,151.29,151.26,16.4009]
[1727283956535,6.6093,151.31,151.27,6.4629]
[1727283956736,23.41096762,151.33,151.27,6.4629]
[1727283957442,6.6094,151.3,151.27,6.4629]
[1727283957934,6.6098,151.29,151.27,6.4629]
[1727283959475,6.857114,151.29,151.16,23.776884]
[1727283959771,6.857114,151.29,151.21,18.90875292]
[1727283960368,6.857114,151.29,151.23,12.10897477]
[1727283961367,6.7137542,151.29,151.23,12.10897477]
[1727283961542,6.6104,151.28,151.17,7.90578066]
[1727283961740,1.65278982,151.27,151.2,12.10897477]
[1727283962473,1.65278982,151.27,151.19,22.6853]
[1727283962649,6.6117,151.25,151.19,22.6853]
[1727283962850,1.65278982,151.27,151.19,22.6853]
[1727283963250,6.6124,151.23,151.19,22.6853]
[1727283963460,1.65278982,151.27,151.19,22.6853]
[1727283963461,23.776884,151.26,151.19,22.6853]
[1727283963665,6.6125,151.23,151.19,22.6853]
[1727283964275,6.6132,151.22,151.16,6.3423]
[1727283971772,8.26688403,151.21,151.16,6.3423]
[1727283972073,16.5292,151.25,151.14,15.3481]
[1727283972074,8.26725664,151.2,151.14,15.3481]
[1727283972276,8.2678475,151.19,151.14,15.3481]
[1727283972474,1.65369948,151.18,151.12,6.6136605]
[1727283972669,6.615,151.17,151.12,6.6136605]
[1727283973478,16.5339,151.21,151.12,0.1796605]
[1727283973479,6.616,151.15,151.12,0.1796605]
[1727283973681,23.776884,151.19,151.12,0.1796605]
[1727283973983,22.7413,151.21,151.12,0.1796605]
[1727283974191,32.0065,151.24,151.12,0.1796605]
[1727283974475,6.6129,151.22,151.12,0.1796605]
[1727283974681,6.6125,151.23,151.14,6.1874]
[1727283975478,6.89058928,151.25,151.16,16.4606]
[1727283975655,6.6121,151.24,151.16,16.4606]
[1727283975855,6.6125,151.23,151.16,16.4606]
[1727283976280,1.65332088,151.22,151.16,16.4606]
[1727283976489,6.6134,151.21,151.16,16.4606]
[1727283979276,23.42058928,151.25,151.16,16.4606]
[1727283979477,6.6127,151.23,151.16,16.4606]
[1727283982464,6.6127,151.23,151.16,28.58013883]
[1727283984594,6.6129,151.22,151.16,28.58013883]
[1727283985184,1.65332548,151.25,151.16,28.58013883]
[1727283985487,6.6125,151.23,151.16,28.58013883]
[1727283986086,6.6129,151.22,151.16,28.58013883]
[1727283986266,6.6135,151.21,151.16,16.4606]
[1727283986681,23.776884,151.25,151.16,16.4606]
[1727283986886,6.6125,151.23,151.16,16.4606]
[1727283988886,6.6134,151.21,151.16,16.4606]
[1727283990169,6.612,151.24,151.16,28.58013883]
[1727283990368,1.65335236,151.23,151.16,16.4606]
[1727283990586,6.6137,151.2,151.16,16.4606]
[1727283990968,6.6142,151.19,151.16,16.4606]
[1727283991179,6.6142,151.19,151.14,6.1874]
[1727283991466,6.6151,151.17,151.12,15.5345605]
[1727283992365,16.5326,151.22,151.12,15.5345605]
[1727283992591,16.5326,151.22,151.12,27.65409933]
[1727283993283,23.776884,151.24,151.14,12.11953883]
[1727283993471,25.43064395,151.24,151.14,12.11953883]
[1727283993679,25.43064395,151.24,151.12,27.65409933]
[1727283993871,6.6142,151.19,151.12,27.65409933]
[1727283994887,6.6139,151.2,151.12,27.65409933]
[1727283995390,8.26794544,151.19,151.12,15.5345605]
[1727283995791,6.6146,151.18,151.12,15.5345605]
[1727283996188,6.6143,151.19,151.12,15.5345605]
[1727283996596,6.6138,151.2,151.13,12.11953883]
[1727283997281,6.6144,151.19,151.13,12.11953883]
[1727283999778,23.776884,151.22,151.12,15.5345605]
[1727283999986,6.6146,151.18,151.12,15.5345605]
[1727284000387,6.6142,151.19,151.12,15.5345605]
[1727284002217,1.6538035,151.18,151.12,15.5345605]
[1727284002492,6.6168,151.13,151.12,0.1796605]
[1727284004088,79.985084,151.17,151.12,0.1796605]
[1727284004294,1.65438278,151.16,151.12,0.1796605]
[1727284004495,6.6167,151.14,151.12,0.1796605]
[1727284006281,6.6161,151.15,151.12,0.1796605]
[1727284006890,6.6156,151.16,151.12,0.1796605]
[1727284007600,16.5347,151.2,151.12,0.1796605]
[1727284007601,8.27019048,151.15,151.12,0.1796605]
[1727284007789,6.616,151.15,151.12,0.1796605]
[1727284008294,6.6168,151.13,151.12,0.1796605]
[1727284014503,40.314284,151.18,151.12,0.1796605]
[1727284014504,6.6163,151.15,151.12,0.1796605]
[1727284014884,6.6164,151.14,151.12,0.1796605]
[1727284018202,23.776884,151.18,151.12,0.1796605]
[1727284018409,6.6168,151.13,151.12,0.1796605]
[1727284018583,6.6164,151.14,151.12,0.1796605]
[1727284019897,8.27113461,151.13,151.12,0.1796605]
[1727284020218,6.6168,151.13,151.12,0.1796605]
[1727284021707,6.6168,151.13,151.12,0.3392104]
[1727284022900,6.6165,151.14,151.12,0.3392104]
[1727284023595,1.65431166,151.13,151.12,0.3392104]
[1727284024109,6.6168,151.13,151.12,0.3392104]
[1727284027201,6.6165,151.14,151.12,0.3392104]
[1727284027599,13.51277176,151.19,151.12,18.53559103]
[1727284027810,15.8589384,151.25,151.14,12.13598063]
[1727284028117,6.6129,151.22,151.15,16.3717]
[1727284028303,6.6134,151.21,151.15,16.3717]
[1727284028616,1.65358648,151.2,151.15,16.3717]
[1727284028923,6.6146,151.18,151.12,6.3996104]
[1727284029105,1.65406056,151.17,151.12,6.3996104]
[1727284029597,6.6156,151.16,151.12,6.3996104]
[1727284029799,6.6161,151.15,151.12,0.3392104]
[1727284030317,91.32427141,151.19,151.12,0.3392104]
[1727284030501,6.6151,151.17,151.12,0.3392104]
[1727284030695,6.6147,151.18,151.13,12.13598063]
[1727284030898,6.6142,151.19,151.13,12.13598063]
[1727284031214,6.6147,151.18,151.13,12.13598063]
[1727284031418,8.26933299,151.17,151.12,0.3392104]
[1727284031616,6.6146,151.18,151.12,0.3392104]
[1727284031814,89.67,151.23,151.12,0.3392104]
[1727284032320,6.6146,151.18,151.12,0.3392104]
[1727284033108,23.776884,151.2,151.12,0.3392104]
[1727284033514,6.6158,151.16,151.12,0.3392104]
[1727284034204,79.982084,151.2,151.12,0.3392104]
[1727284034931,23.776884,151.17,151.12,0.3392104]
[1727284036026,6.6164,151.14,151.12,0.3392104]
[1727284036431,16.5374,151.18,151.12,0.3392104]
[1727284037206,6.6152,151.17,151.12,0.3392104]
[1727284038624,30.67382878,151.2,151.12,0.3392104]
[1727284038926,6.6155,151.16,151.12,0.3392104]
[1727284039798,6.89694478,151.2,151.12,0.3392104]
[1727284040002,6.89694478,151.2,151.14,6.4206]
[1727284040003,6.614,151.2,151.14,6.4206]
[1727284040197,63.09529879,151.24,151.14,6.4206]
[1727284040530,6.6145,151.19,151.14,6.4206]
[1727284041031,6.6151,151.17,151.14,6.4206]
[1727284041212,8.26956189,151.16,151.14,6.4206]
[1727284041415,6.6151,151.17,151.14,6.4206]
[1727284042499,16.5349,151.2,151.14,6.4206]
[1727284042716,6.615,151.18,151.14,6.4206]
[1727284042918,6.6144,151.19,151.14,6.4206]
[1727284043203,6.6137,151.21,151.14,6.4206]
[1727284043412,6.6141,151.2,151.14,6.4206]
[1727284044110,23.776884,151.22,151.14,6.4206]
[1727284044320,6.6143,151.19,151.14,6.4206]
[1727284044716,8.26849801,151.18,151.14,6.4206]
[1727284045116,1.65391903,151.17,151.14,6.4206]
[1727284045521,8.26921903,151.17,151.14,6.4206]
[1727284045722,1.65408919,151.16,151.12,0.3392104]
[1727284045926,6.6166,151.14,151.12,0.3392104]
[1727284046134,8.27115767,151.13,151.12,0.3392104]
[1727284046426,6.6168,151.13,151.12,0.3392104]
[1727284049330,30.393684,151.13,151.12,0.3392104]
[1727284051030,6.6168,151.13,151.12,0.3392104]
[1727284051414,8.2714835,151.13,151.12,0.3392104]
[1727284052313,6.6168,151.13,151.12,0.3392104]
[1727284054211,8.27140885,151.13,151.12,0.3392104]
[1727284054740,6.88603816,151.16,151.12,0.3392104]
[1727284054933,6.6165,151.14,151.12,0.3392104]
[1727284055232,8.27122701,151.13,151.12,0.3392104]
[1727284055437,6.6168,151.13,151.12,0.3392104]
[1727284056634,72.95400297,151.23,151.12,0.3392104]
[1727284056846,1.65401777,151.22,151.12,0.3392104]
[1727284057136,6.6161,151.15,151.12,0.3392104]
[1727284057820,6.6156,151.16,151.12,0.3392104]
[1727284058936,89.67,151.21,151.12,0.3392104]
[1727284058937,6.6147,151.18,151.12,0.3392104]
[1727284059129,25.06666762,151.22,151.12,0.3392104]
[1727284059321,64.73666762,151.22,151.12,0.3392104]
[1727284059521,6.6156,151.16,151.12,0.3392104]
[1727284059828,1.65421066,151.15,151.12,0.3392104]
[1727284060216,6.6156,151.16,151.12,0.3392104]
[1727284060640,6.6154,151.17,151.12,0.3392104]
[1727284060932,6.6147,151.18,151.12,0.3392104]
[1727284061340,6.6152,151.17,151.12,0.3392104]
[1727284063136,1.65408842,151.16,151.12,0.3392104]
[1727284063337,6.6152,151.17,151.12,0.3392104]
[1727284063634,16.5348,151.2,151.12,0.3392104]
[1727284063825,6.6149,151.18,151.12,0.3392104]
[1727284064017,16.5348,151.2,151.12,0.3392104]
[1727284064018,8.26919156,151.17,151.12,0.3392104]
[1727284064443,6.6158,151.16,151.12,0.3392104]
[1727284064754,1.65419785,151.15,151.12,0.3392104]
[1727284064949,6.6158,151.16,151.12,0.3392104]
[1727284065738,23.776884,151.19,151.12,0.3392104]
[1727284065920,6.6153,151.17,151.12,0.3392104]
[1727284067048,6.6146,151.18,151.12,0.3392104]
[1727284067546,6.6151,151.17,151.12,0.3392104]
[1727284070127,1.65401345,151.2,151.12,0.3392104]
[1727284070332,6.6147,151.18,151.12,0.3392104]
[1727284070649,1.65401512,151.17,151.12,0.3392104]
[1727284071428,8.26911512,151.17,151.12,0.3392104]
[1727284071740,6.6151,151.17,151.12,0.3392104]